fUST/lending_fUST_20251116
["ID","MTS","AMOUNT","RATE_DAILY","PERIOD"]
[394107438,1763290344489,-265.08668703,0.00014133,2]
[394107439,1763290348112,-270.19516596,0.00014133,2]
[394107440,1763290351834,-173.70155009,0.00014133,2]
[394107441,1763290353257,-284.71714984,0.00014133,2]
[394107442,1763290355575,-173.21374517,0.00014133,2]
[394107443,1763290357197,-423.20227801,0.00014133,2]
[394107444,1763290359866,-204.98478072,0.00014133,2]
[394107445,1763290362011,-598.07037494,0.00014133,2]
[394107446,1763290364578,-307.29441956,0.00014133,2]
[394107447,1763290366037,-211.8912201,0.00014133,2]
[394107448,1763290368287,-284.11406408,0.00014133,2]
[394107449,1763290371773,-239.79837371,0.00014133,2]
[394107450,1763290376188,-251.72901037,0.00014133,2]
[394107451,1763290377763,-188.66094234,0.00014133,2]
[394107452,1763290381700,-248.72522566,0.00014133,2]
[394107453,1763290448023,-300.0,0.00014133,2]
[394107454,1763290449523,-66.13800148,0.00014133,2]
[394107455,1763290449643,-127.87636372,0.00014133,2]
[394107456,1763290449668,-192.89321553,0.00014183,2]
[394107457,1763290449690,-72.31037479,0.00014233,2]
[394107458,1763290454267,-171.07384557,0.00014091,2]
[394107459,1763290456321,-148.68129445,0.00014091,2]
[394107460,1763290456344,-19.84976901,0.00014233,2]
[394107461,1763290458977,-299.90537101,0.00014233,2]
[394107462,1763290458999,-60.49939295,0.00014377,2]
[394107463,1763290462566,41004.2357152,0.00013668,2]
[394107464,1763290468282,299.90537101,0.0001395,2]
[394107465,1763290476673,299.90537101,0.0001395,2]
[394107466,1763290492087,299.90537101,0.0001395,2]
[394107467,1763290499849,299.90537101,0.0001395,2]
[394107468,1763290514694,299.90537101,0.0001395,2]
[394107469,1763290522482,299.90537101,0.0001395,2]
[394107470,1763290538105,299.90537101,0.0001395,2]
[394107471,1763290545923,299.90537101,0.0001395,2]
[394107472,1763290561005,299.90537101,0.0001395,2]
[394107473,1763290569756,260.16531808,0.0001395,2]
[394107474,1763290584606,299.90537101,0.0001395,2]
[394107475,1763290607363,174.77250191,0.0001395,2]
[394107476,1763290625822,201.0,0.00032877,120]
[394107477,1763290644877,299.90537101,0.0001395,2]
[394107478,1763290673627,-328.16069194,0.00014419,2]
[394107479,1763290676866,-244.60593003,0.00014419,2]
[394107480,1763290679213,-391.13527538,0.00014419,2]
[394107481,1763290682232,-530.25148939,0.00014419,2]
[394107482,1763290686994,-206.48039651,0.00014419,2]
[394107483,1763290759216,206.48039651,0.00013991,2]
[394107485,1763290867602,-171.83081564,0.00014275,2]
[394107486,1763290871039,-618.62110981,0.00014275,2]
[394107487,1763290873624,-774.85741942,0.00014275,2]
[394107488,1763290876031,153.99782099,0.000328,120]
[394107489,1763290876467,-246.63315987,0.00014275,2]
[394107490,1763290879000,-206.48039651,0.00014275,2]
[394107491,1763290880735,-174.85304809,0.00014275,2]
[394107492,1763290882301,-300.81745158,0.00014275,2]
[394107493,1763290886566,-180.88755053,0.00014275,2]
[394107494,1763290897123,801.4008039,0.00013699,2]
[394107495,1763290897574,-189.34206635,0.00014132,2]
[394107496,1763290900100,-500.0,0.00014132,2]
[394107497,1763290902875,-500.0,0.00014132,2]
[394107498,1763290906787,-339.35242864,0.00014132,2]
[394107499,1763290907635,1000.0,0.00013699,2]
[394107500,1763290908861,-342.21909155,0.00014132,2]
[394107501,1763290950178,913.3824402,0.00013413,2]
[394107502,1763290990193,1197.321242,0.00013699,2]
[394107503,1763291098207,192.53241218,0.00013913,2]
[394107504,1763291120265,192.53241218,0.00013913,2]
[394107505,1763291142432,192.53241218,0.00013913,2]
[394107506,1763291165098,192.53241218,0.00013913,2]
[394107507,1763291187046,192.53241218,0.00013913,2]
[394107508,1763291209026,192.53241218,0.00013913,2]
[394107509,1763291231575,192.53241218,0.00013913,2]
[394107510,1763291254129,192.53241218,0.00013913,2]
[394107511,1763291276148,192.53241218,0.00013913,2]
[394107512,1763291300110,192.53241218,0.00013913,2]
[394107513,1763291317678,-192.53241218,0.00014054,2]
[394107514,1763291317700,-218.48388949,0.00014098,2]
[394107515,1763291317740,196.71506229,0.00017896,7]
[394107516,1763291320596,-168.8803592,0.00014098,2]
[394107517,1763291320618,-65.03835276,0.00014098,2]
[394107518,1763291321912,-377.66364574,0.00014098,2]
[394107519,1763291321933,-5.29802447,0.00014125,2]
[394107520,1763291322158,377.66364574,0.00013957,2]
[394107521,1763291330738,187.23438771,0.00013984,2]
[394107523,1763291341014,150.0,0.00032876,120]
[394107543,1763291346775,187.23438771,0.00013984,2]
[394107547,1763291354648,187.23438771,0.00013984,2]
[394107548,1763291370112,187.23438771,0.00013984,2]
[394107549,1763291370139,-187.23438771,0.00014125,2]
[394107550,1763291370165,-3750.21259419,0.00014364,2]
[394107551,1763291370186,-300.0,0.00014414,2]
[394107552,1763291370207,-302.58884114,0.00014415,2]
[394107553,1763291370228,-500.0,0.00014415,2]
[394107554,1763291370253,-500.0,0.00014415,2]
[394107555,1763291370273,-500.0,0.00014415,2]
[394107556,1763291370293,-500.0,0.00014415,2]
[394107557,1763291370312,-500.0,0.00014415,2]
[394107558,1763291370332,-339.4664613,0.00014415,2]
[394107559,1763291407533,-276.97327124,0.00014128,2]
[394107560,1763291423066,-160.22882265,0.00014098,2]
[394107561,1763291423088,-67.80679315,0.00014128,2]
[394107562,1763291424568,2436.40537195,0.00017915,7]
[394107563,1763291428283,510.3581723,0.00013369,2]
[394107582,1763291438022,-140.43137018,0.00014128,2]
[394107583,1763291438033,-300.0,0.00014198,2]
[394107584,1763291438043,-300.0,0.00014198,2]
[394107585,1763291438052,-253.73863032,0.00014198,2]
[394107586,1763291438064,-46.26136968,0.00014198,2]
[394107587,1763291438073,-300.0,0.00014198,2]
[394107588,1763291438083,-1200.0,0.00014198,2]
[394107589,1763291438092,-8347.65280032,0.00014199,2]
[394107597,1763291440067,-624.75,0.00014199,2]
[394107621,1763291440606,-3e-08,0.00014199,2]
[394107660,1763291532883,905.3647945,0.00013699,2]
[394107661,1763291572513,-798.63030659,0.00014057,2]
[394107662,1763291574600,-181.88495492,0.00014057,2]
[394107663,1763291576691,-354.12447182,0.00014057,2]
[394107664,1763291578327,-205.00930454,0.00014057,2]
[394107665,1763291580090,-175.58133288,0.00014057,2]
[394107666,1763291585174,-175.53106346,0.00014057,2]
[394107667,1763291587248,-325.19871181,0.00014057,2]
[394107668,1763291589475,-184.64882398,0.00014057,2]
[394107669,1763291591146,-413.16149395,0.00014057,2]
[394107670,1763291601361,2766.76959618,0.00013957,2]
[394107671,1763291622154,813.67124613,0.00017915,7]
[394107672,1763291674327,1811.0,0.0001865,3]
[394107674,1763291701754,698.714324,0.00013699,2]
[394107675,1763291718161,978.19190251,0.00013699,2]
[394107676,1763291816203,211.8912201,0.00013382,2]
[394107687,1763291863045,203.35151173,0.00013987,2]
[394107688,1763291885411,203.35151173,0.00013987,2]
[394107689,1763291903143,-360.70904745,0.00014098,2]
[394107690,1763291903165,-262.06839354,0.00014098,2]
[394107691,1763291904772,-199.49286662,0.00014098,2]
[394107692,1763291907133,-187.71502524,0.00014098,2]
[394107693,1763291907152,-49.2508952,0.00014098,2]
[394107694,1763291907870,1341.98397707,0.00013957,2]
[394107695,1763291909712,-230.83675562,0.00014098,2]
[394107696,1763291911829,-432.71403423,0.00014098,2]
[394107697,1763291913517,-346.00455796,0.00014098,2]
[394107698,1763291914492,158.04002487,0.00013699,2]
[394107699,1763291915489,-95.46270882,0.00014098,2]
[394107700,1763291915512,-110.00286124,0.00014128,2]
[394107701,1763291920481,999.0,0.00013415,2]
[394107702,1763291947650,-160.12989531,0.00014163,2]
[394107703,1763291998262,12235.65466841,0.00013328,2]
[394107704,1763291998283,15934.70436919,0.00013328,2]
[394107706,1763292019958,375.5029191,0.00013957,2]
[394107707,1763292020594,-208.36124201,0.00014098,2]
[394107708,1763292043188,167.14167709,0.00013957,2]
[394107709,1763292066033,167.14167709,0.00013957,2]
[394107711,1763292088397,167.14167709,0.00013957,2]
[394107713,1763292110677,167.14167709,0.00013957,2]
[394107714,1763292134013,167.14167709,0.00013957,2]
[394107715,1763292156162,167.14167709,0.00013957,2]
[394107716,1763292157588,-167.14167709,0.00014098,2]
[394107717,1763292157609,-81.58680435,0.00014163,2]
[394107718,1763292160984,-166.87460121,0.00014163,2]
[394107719,1763292164099,-245.23718289,0.00014163,2]
[394107720,1763292165644,-178.18563153,0.00014163,2]
[394107721,1763292170224,-211.74842789,0.00014163,2]
[394107722,1763292175150,-272.62481421,0.00014163,2]
[394107723,1763292178257,-217.62386043,0.00014163,2]
[394107724,1763292180443,-161.45121328,0.00014021,2]
[394107725,1763292181984,-469.56801186,0.00014021,2]
[394107726,1763292183430,-166.40550484,0.00014021,2]
[394107727,1763292185638,-206.72474021,0.00014021,2]
[394107728,1763292187237,-90.10261642,0.00014021,2]
[394107729,1763292187268,-88.37172376,0.00014163,2]
[394107730,1763292189417,-160.43527447,0.00014163,2]
[394107731,1763292191009,-381.54604415,0.00014163,2]
[394107732,1763292192609,-187.72167892,0.00014163,2]
[394107733,1763292202018,167.2936273,0.00013376,2]
[394107734,1763292218131,-168.69568844,0.00014073,2]
[394107735,1763292218153,-248.77514059,0.00014073,2]
[394107736,1763292219742,-54.8770986,0.00014073,2]
[394107737,1763292219763,-254.37640146,0.00014073,2]
[394107738,1763292222313,-254.4734089,0.00014073,2]
[394107739,1763292224437,285.44980154,0.00013933,2]
[394107740,1763292241390,3308.62459999,0.0003287,120]
[394107741,1763292247624,-30.97639264,0.00014073,2]
[394107742,1763292247647,-58.55350488,0.00014163,2]
[394107743,1763292247670,-227.39950325,0.00014163,2]
[394107744,1763292250606,-263.03407956,0.00014163,2]
[394107745,1763292253447,-248.57440847,0.00014163,2]
[394107746,1763292255049,-382.90734105,0.00014163,2]
[394107747,1763292263867,-17.5472236,0.00014163,2]
[394107748,1763292263891,-165.52337563,0.00014163,2]
[394107749,1763292265362,2146.0,0.0001865,3]
[394107750,1763292265410,-157.78090845,0.00014045,2]
[394107751,1763292268829,-235.11845016,0.00014045,2]
[394107752,1763292269780,3592.43168574,0.00013905,2]
[394107753,1763292270498,-310.41833647,0.00014045,2]
[394107754,1763292273963,-381.21381954,0.00014045,2]
[394107755,1763292279953,-154.15334276,0.00014045,2]
[394107756,1763292281472,-151.51062978,0.00014045,2]
[394107757,1763292283651,-229.53691335,0.00014045,2]
[394107758,1763292286887,-197.28475644,0.00014045,2]
[394107759,1763292289774,-371.20125975,0.00014045,2]
[394107760,1763292292112,1933.19543724,0.00013905,2]
[394107761,1763292294001,-625.44777549,0.00014045,2]
[394107762,1763292295693,-531.26706152,0.00014045,2]
[394107763,1763292298811,-184.57899421,0.00014045,2]
[394107764,1763292301236,-196.58921793,0.00014045,2]
[394107765,1763292323051,-24.11112834,0.00014045,2]
[394107766,1763292323077,-210.55590752,0.00014073,2]
[394107767,1763292325342,-198.81943531,0.00014073,2]
[394107768,1763292327993,-184.80898443,0.00014073,2]
[394107769,1763292330007,-94.61986074,0.00014073,2]
[394107770,1763292330030,-138.96449669,0.00014073,2]
[394107771,1763292331991,-988.66838313,0.00014073,2]
[394107772,1763292332085,1000.0,0.0003287,120]
[394107773,1763292333638,-112.21465858,0.00014073,2]
[394107774,1763292333661,-107.05402668,0.00014073,2]
[394107775,1763292334231,1000.0,0.0003287,120]
[394107776,1763292335075,1000.0,0.0003287,120]
[394107777,1763292335827,1000.0,0.0003287,120]
[394107778,1763292336228,-509.25367433,0.00014073,2]
[394107779,1763292336736,1000.0,0.0003287,120]
[394107780,1763292337339,3968.26357441,0.00013933,2]
[394107781,1763292339962,-403.51387007,0.00014073,2]
[394107782,1763292340774,1000.0,0.0003287,120]
[394107783,1763292341567,1000.0,0.0003287,120]
[394107784,1763292342133,-170.54440839,0.00014073,2]
[394107785,1763292343688,-741.834414,0.00014073,2]
[394107786,1763292345037,1000.0,0.0003287,120]
[394107787,1763292345912,1000.0,0.0003287,120]
[394107788,1763292348876,-271.97300814,0.00014073,2]
[394107789,1763292348898,-28.02699186,0.00014073,2]
[394107790,1763292350419,-573.28340156,0.00014073,2]
[394107791,1763292355125,-186.06169872,0.00014073,2]
[394107792,1763292357177,-216.96010571,0.00014073,2]
[394107793,1763292358823,-206.73428582,0.00014073,2]
[394107794,1763292361091,-375.74396929,0.00014073,2]
[394107795,1763292362757,-336.96338535,0.00014073,2]
[394107797,1763292366363,-291.36681348,0.00014072,2]
[394107798,1763292391131,-8.63318652,0.00014072,2]
[394107799,1763292391151,-142.49840696,0.00014073,2]
[394107801,1763292460625,1520.0478135,0.0001865,3]
[394107802,1763292464282,5888.0,0.000185,3]
[394107803,1763292466995,287.9521865,0.000185,3]
[394107805,1763292487724,422.48223662,0.00010618,2]
[394107806,1763292489638,2309.93385874,0.000125,2]
[394107809,1763292502739,287.77224008,0.0001,2]
[394107810,1763292507179,417.89728248,0.00013699,2]
[394107811,1763292509831,1500.0,0.00013931,2]
[394107812,1763292512399,1000.0,0.0001,2]
[394107814,1763292517556,1500.0,0.00013931,2]
[394107816,1763292532810,1291.28276551,0.00013931,2]
[394107817,1763292536852,-1200.0,0.00014072,2]
[394107818,1763292536883,-300.0,0.00014072,2]
[394107820,1763292541104,150.0,0.00032875,120]
[394107821,1763292541411,2175.74746333,0.00013933,2]
[394107822,1763292543034,300.0,0.00014072,2]
[394107823,1763292552115,-1377.74869474,0.00014073,2]
[394107824,1763292552144,-2285.12245691,0.00014073,2]
[394107825,1763292552315,-2674.2676967,0.00014073,2]
[394107826,1763292552496,-380.58917627,0.00014073,2]
[394107827,1763292552525,-685.06051729,0.00014073,2]
[394107828,1763292552553,-1217.88536408,0.00014073,2]
[394107829,1763292552579,-35.44515097,0.00014163,2]
[394107830,1763292552681,-13.51418938,0.00014163,2]
[394107831,1763292552711,-3469.32278055,0.00014199,2]
[394107832,1763292552777,-3374.39781007,0.00014204,2]
[394107833,1763292553048,-7167.80811067,0.00014205,2]
[394107834,1763292553079,-3321.87392249,0.00014205,2]
[394107835,1763292553106,-500.0,0.00014259,2]
[394107836,1763292553135,-500.0,0.00014259,2]
[394107837,1763292553164,-500.0,0.00014259,2]
[394107838,1763292553222,-500.0,0.00014259,2]
[394107839,1763292553231,-1185.99110663,0.00014259,2]
[394107840,1763292553240,-233.91871196,0.00014259,2]
[394107841,1763292553249,-500.0,0.00014259,2]
[394107842,1763292553259,-500.0,0.00014259,2]
[394107843,1763292553268,-500.0,0.00014259,2]
[394107844,1763292553277,-1185.99110663,0.00014259,2]
[394107845,1763292553287,-500.0,0.00014259,2]
[394107846,1763292553296,-72.23515229,0.00014259,2]
[394107847,1763292553328,-427.76484771,0.00014259,2]
[394107848,1763292553357,-500.0,0.00014259,2]
[394107849,1763292553392,-500.0,0.00014259,2]
[394107850,1763292553422,-500.0,0.00014259,2]
[394107851,1763292553454,-1185.99110663,0.00014259,2]
[394107852,1763292553490,-500.0,0.00014259,2]
[394107853,1763292553520,-500.0,0.00014259,2]
[394107854,1763292553550,-586.50698469,0.00014259,2]
[394107855,1763292553776,-121.61098346,0.00014259,2]
[394107856,1763292553792,-356.26215502,0.00014259,2]
[394107857,1763292553832,-121.61098346,0.00014259,2]
[394107858,1763292553859,-500.0,0.00014259,2]
[394107859,1763292553887,-500.0,0.00014259,2]
[394107860,1763292554006,-1185.99110663,0.00014259,2]
[394107861,1763292554037,-500.0,0.00014259,2]
[394107862,1763292554069,-500.0,0.00014259,2]
[394107863,1763292554097,-500.0,0.00014259,2]
[394107864,1763292554126,-500.0,0.00014259,2]
[394107865,1763292554155,-500.0,0.00014259,2]
[394107866,1763292554257,-1185.99110663,0.00014259,2]
[394107867,1763292554293,-500.0,0.00014259,2]
[394107868,1763292554335,-500.0,0.00014259,2]
[394107869,1763292554371,-500.0,0.00014259,2]
[394107870,1763292554409,-1185.99110663,0.00014259,2]
[394107871,1763292554444,-500.0,0.00014259,2]
[394107872,1763292554481,-500.0,0.00014259,2]
[394107873,1763292554893,-427.76484771,0.00014259,2]
[394107874,1763292554916,-72.23515229,0.00014259,2]
[394107875,1763292554926,-312.57066753,0.00014259,2]
[394107876,1763292554941,-187.42933247,0.00014259,2]
[394107877,1763292554952,-998.56177416,0.00014259,2]
[394107878,1763292554974,-187.42933247,0.00014259,2]
[394107879,1763292554983,-312.57066753,0.00014259,2]
[394107880,1763292554997,-187.42933247,0.00014259,2]
[394107881,1763292555006,-312.57066753,0.00014259,2]
[394107882,1763292555021,-187.42933247,0.00014259,2]
[394107883,1763292555031,-312.57066753,0.00014259,2]
[394107884,1763292555045,-187.42933247,0.00014259,2]
[394107885,1763292555054,-500.0,0.00014259,2]
[394107886,1763292555074,-498.56177416,0.00014259,2]
[394107887,1763292555099,-1.43822584,0.00014259,2]
[394107888,1763292555109,-498.56177416,0.00014259,2]
[394107889,1763292555124,-500.0,0.00014259,2]
[394107890,1763292555143,-187.42933247,0.00014259,2]
[394107891,1763292555153,-68.61624101,0.00014259,2]
[394107892,1763292555215,-431.38375899,0.00014259,2]
[394107893,1763292555245,-500.0,0.00014259,2]
[394107894,1763292555277,-500.0,0.00014259,2]
[394107895,1763292555308,-500.0,0.00014259,2]
[394107896,1763292555342,-1185.99110663,0.00014259,2]
[394107897,1763292555372,-500.0,0.00014259,2]
[394107898,1763292555402,-500.0,0.00014259,2]
[394107899,1763292555436,-500.0,0.00014259,2]
[394107900,1763292555533,-1185.99110663,0.00014259,2]
[394107901,1763292555563,-500.0,0.00014259,2]
[394107902,1763292555592,-500.0,0.00014259,2]
[394107903,1763292555624,-1185.99110663,0.00014259,2]
[394107904,1763292555754,-500.0,0.00014259,2]
[394107905,1763292555785,-500.0,0.00014259,2]
[394107906,1763292555816,-500.0,0.00014259,2]
[394107907,1763292555895,-557.54958673,0.00014259,2]
[394107908,1763292555928,-1185.99110663,0.00014259,2]
[394107909,1763292555958,-500.0,0.00014259,2]
[394107910,1763292555990,-500.0,0.00014259,2]
[394107911,1763292556022,-1185.99110663,0.00014259,2]
[394107912,1763292556052,-500.0,0.00014259,2]
[394107913,1763292556083,-500.0,0.00014259,2]
[394107914,1763292556207,-500.0,0.00014259,2]
[394107915,1763292556244,-1185.99110663,0.00014259,2]
[394107916,1763292556275,-500.0,0.00014259,2]
[394107917,1763292556304,-500.0,0.00014259,2]
[394107918,1763292556333,-500.0,0.00014259,2]
[394107919,1763292556366,-1185.99110663,0.00014259,2]
[394107920,1763292556394,-500.0,0.00014259,2]
[394107921,1763292556500,-1185.99110663,0.00014259,2]
[394107922,1763292556530,-500.0,0.00014259,2]
[394107923,1763292556558,-500.0,0.00014259,2]
[394107924,1763292556586,-500.0,0.00014259,2]
[394107925,1763292556617,-1185.99110663,0.00014259,2]
[394107926,1763292556645,-500.0,0.00014259,2]
[394107927,1763292556676,-70.05446685,0.00014259,2]
[394107928,1763292557207,-848.24334889,0.00014259,2]
[394107929,1763292557223,-267.69329089,0.00014259,2]
[394107931,1763292557311,-232.30670911,0.00014259,2]
[394107932,1763292557325,-356.62626066,0.00014259,2]
[394107933,1763292557335,-500.0,0.00014259,2]
[394107934,1763292557344,-329.36484597,0.00014259,2]
[394107935,1763292561190,-206.42046769,0.00014159,2]
[394107936,1763292561226,-170.63515403,0.00014259,2]
[394107937,1763292561262,-1185.99110663,0.00014259,2]
[394107938,1763292561298,-500.0,0.00014259,2]
[394107939,1763292561327,-500.0,0.00014259,2]
[394107940,1763292561357,-500.0,0.00014259,2]
[394107941,1763292561389,-1185.99110663,0.00014259,2]
[394107942,1763292561418,-500.0,0.00014259,2]
[394107943,1763292561448,-1.93433004,0.00014259,2]
[394107944,1763292561538,-498.06566996,0.00014259,2]
[394107945,1763292561572,-500.0,0.00014259,2]
[394107946,1763292561605,-1185.99110663,0.00014259,2]
[394107947,1763292561635,-500.0,0.00014259,2]
[394107948,1763292561665,-1185.99110663,0.00014259,2]
[394107949,1763292561695,-500.0,0.00014259,2]
[394107950,1763292561728,-500.0,0.00014259,2]
[394107951,1763292561827,-500.0,0.00014259,2]
[394107952,1763292561858,-1185.99110663,0.00014259,2]
[394107953,1763292561887,-500.0,0.00014259,2]
[394107954,1763292561916,-500.0,0.00014259,2]
[394107955,1763292561947,-1185.99110663,0.00014259,2]
[394107956,1763292561978,-500.0,0.00014259,2]
[394107957,1763292562008,-70.05446685,0.00014259,2]
[394107958,1763292562069,-1115.93663978,0.00014259,2]
[394107959,1763292562099,-500.0,0.00014259,2]
[394107960,1763292562128,-500.0,0.00014259,2]
[394107961,1763292562157,-500.0,0.00014259,2]
[394107962,1763292562189,-1185.99110663,0.00014259,2]
[394107963,1763292562220,-500.0,0.00014259,2]
[394107964,1763292562247,-500.0,0.00014259,2]
[394107965,1763292562357,-500.0,0.00014259,2]
[394107966,1763292562387,-1185.99110663,0.00014259,2]
[394107967,1763292562496,-500.0,0.00014259,2]
[394107968,1763292562530,-1185.99110663,0.00014259,2]
[394107969,1763292562560,-500.0,0.00014259,2]
[394107970,1763292562587,-500.0,0.00014259,2]
[394107971,1763292562618,-70.05446685,0.00014259,2]
[394107972,1763292562734,-1115.93663978,0.00014259,2]
[394107973,1763292562764,-500.0,0.00014259,2]
[394107974,1763292562792,-500.0,0.00014259,2]
[394107975,1763292562821,-1185.99110663,0.00014259,2]
[394107976,1763292562848,-500.0,0.00014259,2]
[394107977,1763292562877,-500.0,0.00014259,2]
[394107978,1763292562908,-210.16340055,0.00014259,2]
[394107979,1763292563398,-15.95980704,0.00014259,2]
[394107980,1763292563412,-500.0,0.00014259,2]
[394107981,1763292563426,-459.86789904,0.00014259,2]
[394107982,1763292563435,-40.13210096,0.00014259,2]
[394107983,1763292563454,-459.86789904,0.00014259,2]
[394107984,1763292563463,-726.12320759,0.00014259,2]
[394107985,1763292563478,-459.86789904,0.00014259,2]
[394107986,1763292563487,-40.13210096,0.00014259,2]
[394107987,1763292563501,-459.86789904,0.00014259,2]
[394107988,1763292563512,-40.13210096,0.00014259,2]
[394107989,1763292563530,-459.86789904,0.00014259,2]
[394107990,1763292563539,-726.12320759,0.00014259,2]
[394107991,1763292565089,-459.86789904,0.00014259,2]
[394107992,1763292565109,-500.0,0.00014259,2]
[394107993,1763292565212,-500.0,0.00014259,2]
[394107994,1763292565236,-696.53488096,0.00014259,2]
[394107995,1763292567384,-489.45622567,0.00014259,2]
[394107996,1763292567412,-500.0,0.00014259,2]
[394107997,1763292567441,-1185.99110663,0.00014259,2]
[394107998,1763292567469,-500.0,0.00014259,2]
[394107999,1763292567497,-1185.99110663,0.00014259,2]
[394108000,1763292567525,-500.0,0.00014259,2]
[394108001,1763292567553,-91.14201551,0.00014259,2]
[394108002,1763292567661,-1094.84909112,0.00014259,2]
[394108003,1763292567814,-500.0,0.00014259,2]
[394108004,1763292567846,-1185.99110663,0.00014259,2]
[394108005,1763292567873,-500.0,0.00014259,2]
[394108006,1763292567901,-500.0,0.00014259,2]
[394108007,1763292567929,-500.0,0.00014259,2]
[394108008,1763292567963,-1185.99110663,0.00014259,2]
[394108009,1763292567994,-500.0,0.00014259,2]
[394108010,1763292568131,-500.0,0.00014259,2]
[394108011,1763292568175,-1185.99110663,0.00014259,2]
[394108012,1763292568217,-500.0,0.00014259,2]
[394108013,1763292568262,-1185.99110663,0.00014259,2]
[394108014,1763292568298,-500.0,0.00014259,2]
[394108015,1763292568339,-500.0,0.00014259,2]
[394108016,1763292568385,-70.05446685,0.00014259,2]
[394108017,1763292568493,-500.0,0.00014259,2]
[394108018,1763292568532,-1115.93663978,0.00014259,2]
[394108019,1763292568568,-500.0,0.00014259,2]
[394108020,1763292568604,-500.0,0.00014259,2]
[394108021,1763292568640,-500.0,0.00014259,2]
[394108022,1763292568680,-1185.99110663,0.00014259,2]
[394108023,1763292568717,-500.0,0.00014259,2]
[394108024,1763292569153,-500.0,0.00014259,2]
[394108025,1763292569162,-371.98221326,0.00014259,2]
[394108026,1763292569175,-500.0,0.00014259,2]
[394108027,1763292569188,-314.00889337,0.00014259,2]
[394108028,1763292569197,-82.14561381,0.00014259,2]
[394108029,1763292573389,-10000.01,0.00014116,2]
[394108030,1763292573513,-3196.10914242,0.00014116,2]
[394108031,1763292573543,-417.85438619,0.00014259,2]
[394108032,1763292573573,-1185.99110663,0.00014259,2]
[394108033,1763292573629,-400.10072952,0.00014259,2]
[394108034,1763292573661,-785.89037711,0.00014259,2]
[394108035,1763292573692,-1185.99110663,0.00014259,2]
[394108036,1763292573722,-1185.99110663,0.00014259,2]
[394108037,1763292573753,-1185.99110663,0.00014259,2]
[394108038,1763292573782,-126.29149937,0.00014259,2]
[394108039,1763292573946,-1059.69960726,0.00014259,2]
[394108040,1763292573982,-1185.99110663,0.00014259,2]
[394108041,1763292574013,-1185.99110663,0.00014259,2]
[394108042,1763292574044,-1185.99110663,0.00014259,2]
[394108043,1763292574077,-1185.99110663,0.00014259,2]
[394108044,1763292574128,-1185.99110663,0.00014259,2]
[394108045,1763292574165,-1185.99110663,0.00014259,2]
[394108046,1763292574200,-1185.99110663,0.00014259,2]
[394108047,1763292574240,-1185.99110663,0.00014259,2]
[394108048,1763292574388,-512.08114696,0.00014259,2]
[394108049,1763292574403,-512.08114696,0.00014259,2]
[394108050,1763292576446,-161.82881271,0.00014259,2]
[394108051,1763292576479,-1185.99110663,0.00014259,2]
[394108052,1763292576509,-1185.99110663,0.00014259,2]
[394108053,1763292576539,-1185.99110663,0.00014259,2]
[394108054,1763292576569,-1185.99110663,0.00014259,2]
[394108055,1763292576659,-1185.99110663,0.00014259,2]
[394108056,1763292576696,-500.0,0.00014259,2]
[394108057,1763292576729,-500.0,0.00014259,2]
[394108058,1763292576759,-500.0,0.00014259,2]
[394108059,1763292576787,-500.0,0.00014259,2]
[394108060,1763292576823,-500.0,0.00014259,2]
[394108061,1763292576858,-500.0,0.00014259,2]
[394108062,1763292576893,-500.0,0.00014259,2]
[394108063,1763292577016,-128.02778674,0.00014259,2]
[394108064,1763292577084,-371.97221326,0.00014259,2]
[394108065,1763292577114,-500.0,0.00014259,2]
[394108066,1763292577147,-1152.78335565,0.00014259,2]
[394108067,1763292577174,-500.0,0.00014259,2]
[394108068,1763292577203,-300.0,0.00014259,2]
[394108069,1763292577233,-1152.78335565,0.00014259,2]
[394108070,1763292577261,-500.0,0.00014259,2]